Workbook

Sheet меню3-7 лет
A1: "Согласовано" | E1: "Утверждаю"
A2: ________________________ | E2: Заместитель генерального директора по организации питания АО "Департамент продовольствия и социального питания г. Казани"
A3: __________________________ | E3: __________________А.К. Агапова
E4: Апрель 2025г
C6: Примерное 12-дневное меню
C7: для организации питания детей в дошкольных образовательных учреждениях
C8: от 3-7 лет с 7-10,5 часовым пребыванием
A10: День 1 - ый
A11: Прием пищи | C11: Выход блюда | D11: Пищевые вещества (г) | G11: Энергетическая | H11: № рецептуры
A12: Наименование блюд | G12: ценность
D13: белки | E13: жиры | F13: угл-ды | G13: Ккал
B14: ЗАВТРАК
A15: Каша манная молочная с маслом | C15: 200/5 | D15: 10.00 | E15: 10.00 | F15: 24.50 | G15: 228.00 | H15: ТТК №4
A16: Чай с сахаром | C16: 180/5 | D16: 0.06 | E16: 0.02 | F16: 4.99 | G16: 20.00 | H16: № 411 Дели2016
A17: Бутерброд с маслом сливочным | C17: 30/5 | D17: 2.21 | E17: 5.13 | F17: 15.16 | G17: 115.50 | H17: №1 Дели2010
A18: Итого: | C18: 425 | D18: =SUM(D14:D17) -> 12.27 | E18: =SUM(E14:E17) -> 15.15 | F18: =SUM(F14:F17) -> 44.65 | G18: =SUM(G14:G17) -> 363.50
A19: Сок | C19: 125 | D19: 0.90 | E19: 0.08 | F19: 21.00 | G19: 84.00 | H19: №418Дели2016
A20: абрикосовый
A21: Итого: | C21: =SUM(C19:C19) -> 125 | D21: =SUM(D19) -> 0.90 | E21: =SUM(E19) -> 0.08 | F21: =SUM(F19) -> 21.00 | G21: =SUM(G19) -> 84.00
C22: 550 | D22: =D18+D21 -> 13.17 | E22: =E18+E21 -> 15.23 | F22: =F18+F21 -> 65.65 | G22: =G18+G21 -> 447.50
B23: ОБЕД
A24: Икра кабачковая | C24: 50 | D24: 0.95 | E24: 3.02 | F24: 7.90 | G24: 63.00 | H24: № 57 Дели 2016
A25: Суп вермишелевый с картофелем и курицей | C25: 200/15 | D25: 3.95 | E25: 5.93 | F25: 15.60 | G25: 136.16 | H25: №88 Дели 2016
A26: Тефтели из говядины с соусом томатным | C26: 70/10 | D26: 6.2 | E26: 6.5 | F26: 5 | G26: 103 | H26: ТТК № 1152 от 09.10.2020 и №364 С-Петербург 2008
A27: Каша гречневая вязкая | C27: 130/3 | D27: 6.20 | E27: 5.80 | F27: 38.00 | G27: 229.00 | H27: №182,Дели 2016
A28: Кисель | C28: 180 | F28: 10.00 | G28: 40.00 | H28: №284Партнер2014
A29: Хлеб пшеничный 1с | C29: 23 | D29: 1.80 | E29: 0.23 | F29: 11.30 | G29: 54.50
A30: Хлеб сельский | C30: 37.5 | D30: 1.8 | E30: 0.4 | F30: 18 | G30: 82.5
A31: Итого: | C31: 718.5 | D31: =SUM(D24:D30) -> 20.90 | E31: =SUM(E24:E30) -> 21.88 | F31: =SUM(F24:F30) -> 105.80 | G31: =SUM(G24:G30) -> 708.16
B32: ПОЛДНИК
A33: Фрукты свежие | C33: 100 | D33: 0.40 | E33: 0.40 | F33: 12.00 | G33: 53.20 | H33: № 386 Дели 2016
A34: яблоко
A35: Катык | C35: 120 | D35: 4.11 | E35: 3 | F35: 5.45 | G35: 67.74 | H35: №401Дели2010
A36: Булочка Домашняя | C36: 50 | D36: 4.90 | E36: 5.00 | F36: 38.00 | G36: 217.00 | H36: №258 Партнер г. Уфа 2014
A37: Напиток из урюка | C37: 180 | D37: 0.6 | E37: 0.1 | F37: 15.0 | G37: 63 | H37: ТТК №68
A38: Итого: | C38: 450 | D38: =SUM(D33:D37) -> 10.01 | E38: =SUM(E33:E37) -> 8.46 | F38: =SUM(F33:F37) -> 70.45 | G38: =SUM(G33:G37) -> 400.44
A39: ВСЕГО: | C39: =C18+C21+C31+C38 -> 1718.5 | D39: =D18+D21+D31+D38 -> 44.08 | E39: =E18+E21+E31+E38 -> 45.57 | F39: =F18+F21+F31+F38 -> 241.9 | G39: =G18+G21+G31+G38 -> 1556.1
A41: День 2- ой
A42: Прием пищи | C42: Выход блюда | D42: Пищевые вещества (г) | G42: Энергетическая | H42: № рецептуры
A43: Наименование блюд | G43: ценность
D44: белки | E44: жиры | F44: угл-ды | G44: Ккал
B45: ЗАВТРАК
A46: Каша "Дружба" молочная с маслом | C46: 200/5 | D46: 5.20 | E46: 5.80 | F46: 25.20 | G46: 173.80 | H46: ТТК №7
A47: Какао с молоком | C47: 180 | D47: 2.42 | E47: 2.58 | F47: 13.61 | G47: 87.30 | H47: №272 Парнер г. Уфа 2014
A48: Бутерброд с сыром, маслом | C48: 30/7/3 | D48: 4.57 | E48: 6.85 | F48: 14.66 | G48: 139.42 | H48: №3 Дели2010
A49: Итого: | C49: 425 | D49: =SUM(D45:D48) -> 12.19 | E49: =SUM(E45:E48) -> 15.23 | F49: =SUM(F45:F48) -> 53.47 | G49: =SUM(G45:G48) -> 400.52
A50: Фрукты свежие | C50: 100 | D50: 1.20 | E50: 0.34 | F50: 10.50 | G50: 49.00 | H50: № 386 Дели 2016
A51: апельсин
A52: Итого: | C52: =SUM(C50) -> 100 | D52: =SUM(D50) -> 1.20 | E52: =SUM(E50) -> 0.34 | F52: =SUM(F50) -> 10.50 | G52: =SUM(G50) -> 49.00
C53: 525 | D53: =D49+D52 -> 13.39 | E53: =E49+E52 -> 15.57 | F53: =F49+F52 -> 63.97 | G53: =G49+G52 -> 449.52
B54: ОБЕД
A55: Салат из свеклы | C55: 50 | D55: 0.60 | E55: 2.50 | F55: 4.20 | G55: 42.00 | H55: №34, Дели2016
A56: Суп из овощей с курицей, со сметаной | C56: 200/15/6 | D56: 3.58 | E56: 7.98 | F56: 20.15 | G56: 166.77 | H56: №64 "Партнер"2014
A57: Соус мясной "Смак" | C57: 70 | D57: 10.10 | E57: 6.80 | F57: 17.00 | G57: 170.00 | H57: ТТК № 1523 от 28.07.2021
A58: Пюре Картофельное | C58: 130 | D58: 3.70 | E58: 4.44 | F58: 25.00 | G58: 155.00 | H58: №137 Партнер 2014
A59: Компот из свежих яблок | C59: 180 | D59: 0.10 | E59: 0.10 | F59: 11.80 | G59: 49.00 | H59: № 390 Дели 2016
A60: Хлеб пшеничный 1с | C60: 23 | D60: 1.80 | E60: 0.23 | F60: 11.30 | G60: 54.50
A61: Хлеб сельский | C61: 37.5 | D61: 1.8 | E61: 0.4 | F61: 18 | G61: 82.5
A62: Итого: | C62: 711.5 | D62: =SUM(D55:D61) -> 21.68 | E62: =SUM(E55:E61) -> 22.45 | F62: =SUM(F55:F61) -> 107.45 | G62: =SUM(G55:G61) -> 719.77
B63: ПОЛДНИК
A64: Кондитерские изделия | C64: 10 | D64: 3.86 | E64: 3.38 | F64: 32.00 | G64: 168.00
A65: печенье
A66: Молоко кипяченое | C66: 120 | D66: 3.40 | E66: 3.00 | F66: 5.70 | G66: 63.40 | H66: №419 Дели2016
A67: Суфле из творога с молоком сгущенным | C67: 150/20 | D67: 9.00 | E67: 12.50 | F67: 24.00 | G67: 245.00 | H67: ТТК №567
A68: Чай с сахаром и лимоном | C68: 180/5/5 | D68: 0.12 | E68: 0.01 | F68: 10.20 | G68: 41.00 | H68: №393Дели2010
A69: Итого: | C69: 490 | D69: =SUM(D64:D68) -> 16.38 | E69: =SUM(E64:E68) -> 18.89 | F69: =SUM(F64:F68) -> 71.90 | G69: =SUM(G64:G68) -> 517.40
A70: ВСЕГО: | C70: =C49+C52+C62+C69 -> 1726.50 | D70: =D49+D52+D62+D69 -> 51.45 | E70: =E49+E52+E62+E69 -> 56.91 | F70: =F49+F52+F62+F69 -> 243.32 | G70: =G49+G52+G62+G69 -> 1686.69
A72: День 3 - ий
A73: Прием пищи | C73: Выход блюда | D73: Пищевые вещества (г) | G73: Энергетическая | H73: № рецептуры
A74: Наименование блюд | G74: ценность
D75: белки | E75: жиры | F75: угл-ды | G75: Ккал
B76: ЗАВТРАК
A77: Каша Геркулесовая молочная с маслом | C77: 200/5 | D77: 6.70 | E77: 7.50 | F77: 22.00 | G77: 182.30 | H77: ТТК №5
A78: Чай с молоком,сахаром | C78: 180/5 | D78: 2.60 | E78: 2.30 | F78: 14.30 | G78: 89.00 | H78: № 394 Дели2010
A79: Бутерброд с маслом сливочным | C79: 30/5 | D79: 2.21 | E79: 5.13 | F79: 15.16 | G79: 115.50 | H79: №1 Дели2010
A80: Итого: | C80: 425 | D80: =SUM(D77:D79) -> 11.51 | E80: =SUM(E77:E79) -> 14.93 | F80: =SUM(F77:F79) -> 51.46 | G80: =SUM(G77:G79) -> 386.80
A81: Сок | C81: 125 | D81: 1.63 | E81: 0.10 | F81: 15.00 | G81: 67.00 | H81: №418Дели2016
A82: яблочно-абрикосовый
A83: Итого: | C83: =SUM(C81) -> 125 | D83: =SUM(D81) -> 1.63 | E83: =SUM(E81) -> 0.10 | F83: =SUM(F81) -> 15.00 | G83: =SUM(G81) -> 67.00
C84: 550 | D84: =D80+D83 -> 13.14 | E84: =E80+E83 -> 15.03 | F84: =F80+F83 -> 66.46 | G84: =G80+G83 -> 453.80
B85: ОБЕД
A86: Огурцы свежие порционно | C86: 50 | D86: 0.35 | E86: 0.05 | F86: 0.95 | G86: 6.00 | H86: стр563,сб1996
A87: Суп с рисовой крупой и картофелем с мясными фрикадельками | C87: 200/15 | D87: 5.50 | E87: 5.20 | F87: 16.20 | G87: 134.00 | H87: №86 Дели 2016
A88: Котлеты рубленые из птицы | C88: 70 | D88: 6.20 | E88: 10.80 | F88: 3.00 | G88: 134.00 | H88: № 205,справ.М2003
A89: Макароны отварные | C89: 130 | D89: 4.80 | E89: 3.60 | F89: 29.40 | G89: 169.00 | H89: №218 Дели 2016
A90: Компот из сухофруктов | C90: 180 | D90: 0.18 | E90: 0.1 | F90: 25.9 | G90: 89 | H90: №394, Дели 2016
A91: Хлеб пшеничный 1с | C91: 23 | D91: 1.80 | E91: 0.23 | F91: 11.30 | G91: 54.50
A92: Хлеб сельский | C92: 37.5 | D92: 1.8 | E92: 0.4 | F92: 18 | G92: 82.5
A93: Итого: | C93: 705.5 | D93: =SUM(D86:D92) -> 20.63 | E93: =SUM(E86:E92) -> 20.37 | F93: =SUM(F86:F92) -> 104.71 | G93: =SUM(G86:G92) -> 669.00
B94: ПОЛДНИК
A95: Фрукты свежие | C95: 100 | D95: 0.40 | E95: 0.40 | F95: 12.00 | G95: 53.20 | H95: № 386 Дели 2016
A96: яблоко
A97: Булочка Дорожная | C97: 50 | D97: 3.55 | E97: 5.91 | F97: 30.10 | G97: 188.00 | H97: №453 Дели 2016
A98: Ряженка | C98: 120 | D98: 4.30 | E98: 3.00 | F98: 5.00 | G98: 64.00 | H98: №401 Дели2010
A99: Яйцо вареное | C99: 48 | D99: 5.10 | E99: 4.60 | F99: 0.30 | G99: 63.00 | H99: №227 Дели 2016
A100: Напиток шиповника | C100: 180/5 | D100: 0.6 | E100: 0.3 | F100: 6.5 | G100: 31 | H100: ТТК № 59
A101: Итого: | C101: 503 | D101: =SUM(D95:D100) -> 13.95 | E101: =SUM(E95:E100) -> 14.21 | F101: =SUM(F95:F100) -> 53.90 | G101: =SUM(G95:G100) -> 399.20
A102: ВСЕГО: | C102: =C80+C83+C93+C101 -> 1758.5 | D102: =D80+D83+D93+D101 -> 47.72 | E102: =E80+E83+E93+E101 -> 49.61 | F102: =F80+F83+F93+F101 -> 225.07 | G102: =G80+G83+G93+G101 -> 1522.00
A104: День 4 - ый
A105: Прием пищи | C105: Выход блюда | D105: Пищевые вещества (г) | G105: Энергетическая | H105: № рецептуры
A106: Наименование блюд | G106: ценность
D107: белки | E107: жиры | F107: угл-ды | G107: Ккал
B108: ЗАВТРАК
A109: Каша пшенная молочная с маслом | C109: 200/5 | D109: 8.00 | E109: 6.60 | F109: 26.00 | G109: 195.40 | H109: ТТК №6
A110: Кофейный напиток с молоком | C110: 180 | D110: 1.22 | E110: 1.34 | F110: 11.94 | G110: 65.00 | H110: №270 Партнер г. Уфа 2014
A111: Бутерброд с сыром, маслом | C111: 30/7/3 | D111: 4.57 | E111: 6.85 | F111: 14.66 | G111: 139.42 | H111: №3 Дели2010
A112: Итого: | C112: 425 | D112: =SUM(D108:D111) -> 13.79 | E112: =SUM(E108:E111) -> 14.79 | F112: =SUM(F108:F111) -> 52.60 | G112: =SUM(G108:G111) -> 399.82
A113: Фруктовое пюре | C113: 125 | D113: 0.00 | E113: 0.00 | F113: 11.00 | G113: 44.00
A114: яблоко
A115: Итого: | C115: =SUM(C113) -> 125 | D115: =SUM(D113) -> 0.00 | E115: =SUM(E113) -> 0.00 | F115: =SUM(F113) -> 11.00 | G115: =SUM(G113) -> 44.00
C116: 550 | D116: =D112+D115 -> 13.79 | E116: =E112+E115 -> 14.79 | F116: =F112+F115 -> 63.60 | G116: =G112+G115 -> 443.82
B117: ОБЕД
A118: Салат из свеклы и моркови | C118: 50 | D118: 1.30 | E118: 2.50 | F118: 6.00 | G118: 51.00 | H118: ТТК №60
A119: Щи со свежей капустой, картофелем, на м/б и сметаной | C119: 200/5 | D119: 4.60 | E119: 8.00 | F119: 23.80 | G119: 186.00 | H119: №73 Дели 2016
A120: Жаркое по-домашнему из отварной говядины | C120: 180 | D120: 12.26 | E120: 12.48 | F120: 39.37 | G120: 318 | H120: ТТК №29 Д
A121: Кисель | C121: 180 | F121: 10.00 | G121: 40.00 | H121: №284Партнер2014
A122: Хлеб пшеничный 1с | C122: 23 | D122: 1.80 | E122: 0.23 | F122: 11.30 | G122: 54.50
A123: Хлеб сельский | C123: 37.5 | D123: 1.8 | E123: 0.4 | F123: 18 | G123: 82.5
A124: Итого: | C124: 675.5 | D124: =SUM(D118:D123) -> 21.76 | E124: =SUM(E118:E123) -> 23.61 | F124: =SUM(F118:F123) -> 108.47 | G124: =SUM(G118:G123) -> 732.00
B125: ПОЛДНИК
A126: Кондитерские изделия | C126: 21 | D126: 2.20 | E126: 5.50 | F126: 26.30 | G126: 158.00
A127: вафли
A128: Молоко кипяченое | C128: 120 | D128: 3.40 | E128: 3.00 | F128: 5.70 | G128: 63.40 | H128: №419 Дели2016
A129: Запеканка творожная с молоком сгущенным | C129: 150/20 | D129: 9.80 | E129: 10.00 | F129: 28.30 | G129: 241.00 | H129: №237 Дели2010
A130: Чай с сахаром | C130: 180/5 | D130: 0.06 | E130: 0.02 | F130: 4.99 | G130: 20.00 | H130: № 411 Дели2016
A131: Итого: | C131: 496 | D131: =SUM(D126:D130) -> 15.46 | E131: =SUM(E126:E130) -> 18.52 | F131: =SUM(F126:F130) -> 65.29 | G131: =SUM(G126:G130) -> 482.40
A132: ВСЕГО: | C132: =C112+C115+C124+C131 -> 1721.5 | D132: =D112+D115+D124+D131 -> 51.01 | E132: =E112+E115+E124+E131 -> 56.92 | F132: =F112+F115+F124+F131 -> 237.36 | G132: =G112+G115+G124+G131 -> 1658.22
A135: День 5 - ый
A136: Прием пищи | C136: Выход блюда | D136: Пищевые вещества (г) | G136: Энергетическая | H136: № рецептуры
A137: Наименование блюд | G137: ценность
D138: белки | E138: жиры | F138: угл-ды | G138: Ккал
B139: ЗАВТРАК
A140: Каша полбяная молочная с маслом | C140: 200/5 | D140: 7.30 | E140: 7.42 | F140: 22.80 | G140: 187.20 | H140: ТТК №1
A141: Какао с молоком | C141: 180 | D141: 2.42 | E141: 2.58 | F141: 13.61 | G141: 87.30 | H141: №272 Парнер г. Уфа 2014
A142: Бутерброд с маслом сливочным | C142: 30/5 | D142: 2.21 | E142: 5.13 | F142: 15.16 | G142: 115.50 | H142: №1 Дели2010
A143: Итого: | C143: 420 | D143: =SUM(D139:D142) -> 11.93 | E143: =SUM(E139:E142) -> 15.13 | F143: =SUM(F139:F142) -> 51.57 | G143: =SUM(G139:G142) -> 390.00
A144: Сок | C144: 125 | D144: 1.20 | E144: 0.06 | F144: 17.50 | G144: 75.00 | H144: №418Дели2016
A145: вишневый
A146: Итого: | C146: =SUM(C144) -> 125 | D146: =SUM(D144:D145) -> 1.20 | E146: =SUM(E144:E145) -> 0.06 | F146: 20.00 | G146: 85.00
C147: 545 | D147: =D143+D146 -> 13.13 | E147: =E143+E146 -> 15.19 | F147: =F143+F146 -> 71.57 | G147: =G143+G146 -> 475.00
B148: ОБЕД
A149: Огурцы соленые | C149: 50 | D149: 0.40 | E149: 0.05 | F149: 0.85 | G149: 5.50 | H149: стр563,сб1996
A150: Свекольник с курицей, со сметаной | C150: 200/10/6 | D150: 3.80 | E150: 5.40 | F150: 18.60 | G150: 138.00 | H150: №35,сб Пермь2001
A151: Капуста тушеная с мясом | C151: 150 | D151: 12.30 | E151: 14.60 | F151: 38.20 | G151: 333.40 | H151: №54-10М Сборник рецептур Москва
A152: Компот из свежих яблок | C152: 180 | D152: 0.10 | E152: 0.10 | F152: 11.80 | G152: 49.00 | H152: № 390 Дели 2016
A153: Хлеб пшеничный 1с | C153: 23 | D153: 1.80 | E153: 0.23 | F153: 11.30 | G153: 54.50
A154: Хлеб сельский | C154: 37.5 | D154: 1.8 | E154: 0.4 | F154: 18 | G154: 82.5
A155: Итого: | C155: 656.5 | D155: =SUM(D149:D154) -> 20.20 | E155: =SUM(E149:E154) -> 20.78 | F155: =SUM(F149:F154) -> 98.75 | G155: =SUM(G149:G154) -> 662.90
B156: ПОЛДНИК
A157: Ватрушка с сыром | C157: 50 | D157: 3.00 | E157: 5.50 | F157: 40.00 | G157: 221.00 | H157: ТТК №1585 от 08.09.2021
A158: Кондитерские изделия | C158: 15 | D158: 9.90 | E158: 7.50 | F158: 48.00 | G158: 187.50
A159: крекер
A160: Кефир | C160: 120 | D160: 4.01 | E160: 3.00 | F160: 5.53 | G160: 74.18 | H160: №401 Дели2010
A161: Чай с сахаром и лимоном | C161: 180/5/5 | D161: 0.12 | E161: 0.01 | F161: 10.20 | G161: 41.00 | H161: №393Дели2010
A162: Итого: | C162: 375 | D162: =SUM(D157:D161) -> 17.03 | E162: =SUM(E157:E161) -> 16.01 | F162: =SUM(F157:F161) -> 103.73 | G162: =SUM(G157:G161) -> 523.68
A163: ВСЕГО: | C163: =C143+C146+C155+C162 -> 1576.5 | D163: =D143+D146+D155+D162 -> 50.36 | E163: =E143+E146+E155+E162 -> 51.98 | F163: =F143+F146+F155+F162 -> 274.05 | G163: =G143+G146+G155+G162 -> 1661.58
A165: День 6 - ой
A166: Прием пищи | C166: Выход блюда | D166: Пищевые вещества (г) | G166: Энергетическая | H166: № рецептуры
A167: Наименование блюд | G167: ценность
D168: белки | E168: жиры | F168: угл-ды | G168: Ккал
B169: ЗАВТРАК
A170: Каша "Дружба" молочная с маслом | C170: 200/5 | D170: 5.20 | E170: 5.80 | F170: 25.20 | G170: 173.80 | H170: ТТК №7
A171: Чай с сахаром | C171: 180/5 | D171: 0.06 | E171: 0.02 | F171: 4.99 | G171: 20.00 | H171: № 511 Дели2016
A172: Бутерброд с сыром, маслом | C172: 30/7/3 | D172: 4.57 | E172: 6.85 | F172: 14.66 | G172: 139.42 | H172: №3 Дели2010
A173: Итого: | C173: 430 | D173: =SUM(D170:D172) -> 9.83 | E173: =SUM(E170:E172) -> 12.67 | F173: =SUM(F170:F172) -> 44.85 | G173: =SUM(G170:G172) -> 333.22
A174: Фрукты свежие | C174: 100 | D174: 0.40 | E174: 0.40 | F174: 12.00 | G174: 53.20 | H174: № 386 Дели 2016
A175: яблоко
A176: Итого: | C176: =SUM(C174) -> 100 | D176: =SUM(D174:D175) -> 0.40 | E176: =SUM(E174:E175) -> 0.40 | F176: 12.00 | G176: 53.20
C177: 530 | D177: =D173+D176 -> 10.23 | E177: =E173+E176 -> 13.07 | F177: 56.85 | G177: 386.42
B178: ОБЕД
A179: Салат из моркови | C179: 50 | D179: 0.75 | E179: 0.06 | F179: 8.50 | G179: 37.00 | H179: №42 Дели2016г
A180: Суп картофельный с клецками, курицей | C180: 200/15 | D180: 3.60 | E180: 7.80 | F180: 25.60 | G180: 187.00 | H180: №38 Пермь2001
A181: Рагу с курицей | C181: 120/25 | D181: 6.00 | E181: 9.50 | F181: 16.90 | G181: 177.00 | H181: ТТК №63
A182: Кисель | C182: 180 | F182: 10.00 | G182: 40.00 | H182: №284Партнер2014
A183: Хлеб пшеничный 1с | C183: 23 | D183: 1.80 | E183: 0.23 | F183: 11.30 | G183: 54.50
A184: Хлеб сельский | C184: 37.5 | D184: 1.8 | E184: 0.4 | F184: 18 | G184: 82.5
A185: Итого: | C185: 650.5 | D185: =SUM(D179:D184) -> 13.95 | E185: =SUM(E179:E184) -> 17.99 | F185: =SUM(F179:F184) -> 90.30 | G185: =SUM(G179:G184) -> 578.00
B186: ПОЛДНИК
A187: Кондитерские изделия | C187: 21 | D187: 2.20 | E187: 5.50 | F187: 26.30 | G187: 158.00
A188: вафли
A189: Катык | C189: 120 | D189: 4.11 | E189: 3 | F189: 5.45 | G189: 67.74 | H189: №401Дели2010
A190: Фрукты свежие | C190: 100 | D190: 0.40 | E190: 0.40 | F190: 12.00 | G190: 53.20 | H190: № 386 Дели 2016
A191: яблоко
A192: Сок | C192: 125 | D192: 0.60 | E192: 0.06 | F192: 22.00 | G192: 91.00 | H192: №418Дели2016
A193: персик-банан
A194: Итого: | C194: 366 | D194: =SUM(D187:D193) -> 7.31 | E194: =SUM(E187:E193) -> 8.96 | F194: =SUM(F187:F193) -> 65.75 | G194: =SUM(G187:G193) -> 369.94
A195: ВСЕГО: | C195: =C173+C176+C185+C194 -> 1546.50 | D195: =D173+D176+D185+D194 -> 31.49 | E195: =E173+E176+E185+E194 -> 40.02 | F195: =F173+F176+F185+F194 -> 212.90 | G195: =G173+G176+G185+G194 -> 1334.36
A196: ИТОГО за 1 неделю | C196: =C39+C70+C102+C132+C163+C195 -> 10048.00 | D196: =D39+D70+D102+D132+D163+D195 -> 276.10 | E196: =E39+E70+E102+E132+E163+E195 -> 301.02 | F196: =F39+F70+F102+F132+F163+F195 -> 1434.60 | G196: =G39+G70+G102+G132+G163+G195 -> 9418.95
C197: =C196/6 -> 1674.666667 | D197: =D196/6 -> 46.01666667 | E197: =E196/6 -> 50.16972222 | F197: =F196/6 -> 239.0997222 | G197: =G196/6 -> 1569.825
C198: 2 неделя
A200: День 7 - ой
A201: Прием пищи | C201: Выход блюда | D201: Пищевые вещества (г) | G201: Энергетическая | H201: № рецептуры
A202: Наименование блюд | G202: ценность
D203: белки | E203: жиры | F203: угл-ды | G203: Ккал
B204: ЗАВТРАК
A205: Каша Геркулесовая молочная с маслом | C205: 200/5 | D205: 6.70 | E205: 7.50 | F205: 22.00 | G205: 182.30 | H205: ТТК №5
A206: Чай с молоком,сахаром | C206: 180/5 | D206: 2.60 | E206: 2.30 | F206: 14.30 | G206: 89.00 | H206: № 394 Дели2010
A207: Бутерброд с сыром, маслом | C207: 30/7/3 | D207: 4.57 | E207: 6.85 | F207: 14.66 | G207: 139.42 | H207: №3 Дели2010
A208: Итого: | C208: 430 | D208: =SUM(D205:D207) -> 13.87 | E208: =SUM(E205:E207) -> 16.65 | F208: =SUM(F205:F207) -> 50.96 | G208: =SUM(G205:G207) -> 410.72
A209: Фрукты свежие | C209: 100 | D209: 0.40 | E209: 0.40 | F209: 12.00 | G209: 53.20 | H209: № 386 Дели 2016
... 202 more rows
